fUSD/lending_fUSD_20240929
["ID","MTS","AMOUNT","RATE_DAILY","PERIOD"]
[339500224,1727645438323,-275.16,0.0001081,2]
[339500225,1727645438332,-499.99,0.0001081,2]
[339500226,1727645438341,-500.0,0.00010886,2]
[339500227,1727645438351,-500.0,0.00010894,2]
[339500228,1727645438360,-4036.38387412,0.000109,2]
[339500229,1727645438369,-500.0,0.00010903,2]
[339500230,1727645438379,-500.0,0.00010912,2]
[339500231,1727645438388,-428.99,0.00010912,2]
[339500232,1727645438397,-500.0,0.00010921,2]
[339500233,1727645438406,-157.52590792,0.00010924,2]
[339500234,1727645438415,-150.0,0.00010929,2]
[339500235,1727645438428,-500.0,0.0001093,2]
[339500236,1727645438437,-500.0,0.00010938,2]
[339500237,1727645438447,-597.96,0.00010941,2]
[339500238,1727645438456,-500.0,0.00010947,2]
[339500239,1727645438466,-500.0,0.00010956,2]
[339500241,1727645438476,-161.19,0.00010959,2]
[339500243,1727645438488,-150.0,0.00010959,2]
[339500245,1727645438497,-250.0,0.00010959,2]
[339500246,1727645438507,-2000.0,0.00010959,2]
[339500247,1727645438516,-500.0,0.00010965,2]
[339500248,1727645438527,-500.0,0.00010973,2]
[339500249,1727645438536,-500.0,0.00010974,2]
[339500250,1727645438546,-500.0,0.00010982,2]
[339500251,1727645438555,-151.97,0.00010989,2]
[339500252,1727645438565,-158.31767819,0.00010989,2]
[339500253,1727645438575,-500.0,0.00010991,2]
[339500254,1727645438584,-500.0,0.00010999,2]
[339500255,1727645438596,-500.0,0.00010999,2]
[339500256,1727645438606,-500.0,0.00010999,2]
[339500257,1727645438615,-500.0,0.00010999,2]
[339500258,1727645438625,-307.74545311,0.00010999,2]
[339500259,1727645438635,-2270.0,0.00010999,2]
[339500260,1727645438644,-500.0,0.00010999,2]
[339500261,1727645438653,-369.93798002,0.00010999,2]
[339500262,1727645438662,-701745.92305552,0.00011,2]
[339500263,1727645438672,-871.08,0.00011,2]
[339500264,1727645438681,-500.0,0.00011,2]
[339500265,1727645438690,-150.0,0.00011,2]
[339500266,1727645438699,-1001.86,0.00011,2]
[339500267,1727645438708,-53549.09572443,0.00011,2]
[339500270,1727645440377,-660.178472,0.00011,2]
[339500271,1727645441912,-322.58,0.00011,2]
[339500272,1727645441972,-5630.65158727,0.00011,2]
[339500295,1727645446152,-4251.23872556,0.00010563,2]
[339500296,1727645446162,-11584.80060844,0.00011,2]
[339500297,1727645535862,649.48458715,0.00015,30]
[339500298,1727645557375,500.0,0.00015,30]
[339500299,1727645557712,500.0,0.00015,30]
[339500300,1727645558048,500.0,0.00015,30]
[339500301,1727645558431,500.0,0.00015,30]
[339500302,1727645559035,500.0,0.00015,30]
[339500303,1727645559360,500.0,0.00015,30]
[339500304,1727645559706,500.0,0.00015,30]
[339500305,1727645560566,500.0,0.00015,30]
[339500306,1727645561438,500.0,0.00015,30]
[339500307,1727645562487,500.0,0.00015,30]
[339500308,1727645562854,500.0,0.00015,30]
[339500309,1727645563196,619.91452493,0.00015,30]
[339500310,1727645586878,326.35,9.09e-05,2]
[339500312,1727646163157,322.69,8.373e-05,2]
[339500313,1727646335901,250.0,9.988e-05,2]
[339500314,1727646398843,150.0,9.991e-05,2]
[339500315,1727646435772,348.41,9.952e-05,2]
[339500316,1727646543570,298.23,9.944e-05,2]
[339500323,1727646632351,-1050.0,0.0001,2]
[339500324,1727646632362,-155.34,0.00010004,2]
[339500325,1727646632371,-468.8,0.00010009,2]
[339500326,1727646632381,-170.52,0.00010035,2]
[339500327,1727646632390,-1000.0,0.00010101,2]
[339500328,1727646632400,-250.0,0.00010177,2]
[339500329,1727646632410,-2148.63172088,0.0001028,2]
[339500330,1727646632421,-2035.89616596,0.0001028,2]
[339500331,1727646632432,-3504.07490294,0.0001028,2]
[339500332,1727646632443,-592.36206145,0.0001028,2]
[339500333,1727646632477,-11455.86514877,0.0001028,2]
[339500334,1727646632486,-322.69,0.00010636,2]
[339500335,1727646632495,-150.0,0.00010767,2]
[339500336,1727646632505,-150.0,0.00010799,2]
[339500337,1727646632514,-1587.5673,0.000108,2]
[339500338,1727646632523,-214.4686,0.000108,2]
[339500339,1727646632532,-261.2791,0.000108,2]
[339500340,1727646632542,-826.5722,0.000108,2]
[339500341,1727646632551,-1900.0235,0.000108,2]
[339500342,1727646632560,-131.05355462,0.000108,2]
[339500343,1727646632573,-5615.12234538,0.000108,2]
[339500344,1727646632583,-310.05266943,0.000108,2]
[339500345,1727646632593,-1098.10124655,0.000108,2]
[339500346,1727646632604,-688.39999162,0.000108,2]
[339500347,1727646632615,-525.4702924,0.000108,2]
[339500348,1727646632625,-500.0,0.00010877,2]
[339500349,1727646632635,-1169.08626815,0.0001088,2]
[339500350,1727646632647,-4773.11977575,0.0001088,2]
[339500351,1727646632684,-6178.12542846,0.0001088,2]
[339500352,1727646632697,-278.60878409,0.0001088,2]
[339500354,1727646632708,-541.65536624,0.0001088,2]
[339500356,1727646632719,-7508.89593245,0.0001088,2]
[339500357,1727646632728,-500.0,0.00010886,2]
[339500360,1727646632737,-500.0,0.00010894,2]
[339500363,1727646632747,-1000.0,0.000109,2]
[339500365,1727646632756,-213.8018,0.000109,2]
[339500367,1727646632764,-506.6185,0.000109,2]
[339500369,1727646632775,-1428.2992,0.000109,2]
[339500371,1727646632785,-1144.7797,0.000109,2]
[339500372,1727646632794,-326.1077,0.000109,2]
[339500373,1727646632803,-6736.9809,0.000109,2]
[339500374,1727646632813,-10164.9362,0.000109,2]
[339500375,1727646632822,-827.9067,0.000109,2]
[339500376,1727646632832,-7658.9519,0.000109,2]
[339500377,1727646632841,-6546.19106971,0.000109,2]
[339500378,1727646632863,-485.07954634,0.000109,2]
[339500379,1727646632874,-28387.15578395,0.000109,2]
[339500380,1727646632884,-340.3042,0.000109,2]
[339500381,1727646632895,-21575.687,0.000109,2]
[339500382,1727646632904,-12610.1644,0.000109,2]
[339500383,1727646632914,-7924.9599,0.000109,2]
[339500384,1727646632923,-38509.7304,0.000109,2]
[339500385,1727646632933,-150.0,0.000109,2]
[339500386,1727646632942,-173.83924187,0.000109,2]
[339500387,1727646632952,-500.0,0.00010903,2]
[339500388,1727646632961,-500.0,0.00010912,2]
[339500389,1727646632971,-500.0,0.00010921,2]
[339500390,1727646632981,-279.44,0.00010928,2]
[339500391,1727646632990,-500.0,0.0001093,2]
[339500392,1727646632999,-500.0,0.00010938,2]
[339500393,1727646633008,-500.0,0.00010947,2]
[339500394,1727646633018,-500.0,0.00010956,2]
[339500395,1727646633027,-150.89,0.00010959,2]
[339500396,1727646633036,-250.0,0.00010959,2]
[339500397,1727646633045,-500.0,0.00010965,2]
[339500398,1727646633054,-500.0,0.00010974,2]
[339500399,1727646633064,-500.0,0.00010982,2]
[339500400,1727646633074,-500.0,0.00010991,2]
[339500401,1727646633084,-102234.77061133,0.00011,2]
[339500402,1727646633118,-2966.48754,0.00011,2]
[339500403,1727646633129,-1963.7448324,0.00011,2]
[339500404,1727646633140,-2218.35862201,0.00011,2]
[339500405,1727646633161,-5213.28861283,0.00011,2]
[339500406,1727646633172,-700.0,0.00011,2]
[339500410,1727646638367,-1259.43334316,0.000108,2]
[339500411,1727646638378,-999.27311977,0.000108,2]
[339500412,1727646638566,-24210.59509431,0.000108,2]
[339500413,1727646638578,-2901.32341379,0.000108,2]
[339500414,1727646638591,-1264.43557993,0.000108,2]
[339500415,1727646638602,-479.69994904,0.000108,2]
[339500416,1727646638611,-777.73570852,0.00011,2]
[339500417,1727646638622,-1454.72444938,0.00011,2]
[339500418,1727646638637,-1138.0,0.00011,2]
[339500419,1727646638676,-66056.58246597,0.00011,2]
[339500420,1727646638685,-783.97,0.00011,2]
[339500421,1727646638694,-500.0,0.00011,2]
[339500422,1727646638704,-336.409,0.00011,2]
[339500423,1727646638713,-166.749,0.00011,2]
[339500424,1727646638722,-1014.14,0.00011,2]
[339500425,1727646638731,-533.76,0.00011112,2]
[339500426,1727646638741,-533.76,0.00011112,2]
[339500427,1727646638750,-533.76,0.00011112,2]
[339500428,1727646638760,-150.0,0.00011235,2]
[339500429,1727646638770,-150.0,0.00011235,2]
[339500430,1727646638779,-155.122,0.00011242,2]
[339500431,1727646638788,-150.8509707,0.00011244,2]
[339500432,1727646638797,-224.28,0.00011249,2]
[339500433,1727646638807,-468.8,0.0001126,2]
[339500434,1727646638816,-346.45,0.000113,2]
[339500435,1727646638825,-422.30975046,0.00011319,2]
[339500436,1727646638835,-1000.0,0.00011364,2]
[339500437,1727646638844,-500.0,0.00011398,2]
[339500438,1727646638853,-640.97126621,0.00011398,2]
[339500439,1727646638862,-715.62,0.000114,2]
[339500440,1727646638871,-358.32,0.000114,2]
[339500441,1727646638880,-358.32,0.000114,2]
[339500442,1727646638889,-428.53,0.000114,2]
[339500443,1727646638898,-150.0,0.000114,2]
[339500444,1727646638907,-716.57,0.000114,2]
[339500445,1727646638916,-428.53,0.000114,2]
[339500446,1727646638925,-150.0,0.000114,2]
[339500447,1727646638934,-428.53,0.000114,2]
[339500448,1727646638943,-150.0,0.000114,2]
[339500449,1727646638952,-358.32,0.000114,2]
[339500450,1727646638961,-407.28,0.000114,2]
[339500451,1727646638970,-427.24,0.000114,2]
[339500452,1727646638979,-716.64,0.000114,2]
[339500453,1727646638988,-173.83924184,0.00011404,2]
[339500454,1727646638998,-158.846698,0.00011665,2]
[339500455,1727646639007,-255.0,0.00011836,2]
[339500456,1727646639016,-173.83924184,0.00011908,2]
[339500457,1727646639025,-533.76,0.00011934,2]
[339500458,1727646639034,-1067.52,0.00011934,2]
[339500459,1727646639043,-533.76,0.00011934,2]
[339500460,1727646639053,-533.76,0.00011934,2]
[339500461,1727646639062,-533.76,0.00011934,2]
[339500462,1727646639071,-533.32,0.00011934,2]
[339500463,1727646639080,-158.846698,0.00011997,2]
[339500464,1727646639091,-15516.57192673,0.00012,2]
[339500465,1727646639099,-1100.0,0.00012,2]
[339500466,1727646639108,-533.72,0.00012014,2]
[339500467,1727646639118,-857.06,0.00012014,2]
[339500468,1727646639127,-302.99,0.00012014,2]
[339500469,1727646639136,-716.64,0.00012014,2]
[339500470,1727646639145,-300.0,0.00012014,2]
[339500471,1727646639154,-300.0,0.00012014,2]
[339500472,1727646639164,-300.0,0.00012014,2]
[339500473,1727646639173,-316.63,0.00012033,2]
[339500474,1727646639182,-180.0,0.00012055,2]
[339500475,1727646639191,-291.7,0.00012082,2]
[339500476,1727646639200,-351.3,0.00012082,2]
[339500477,1727646639210,-350.92,0.00012082,2]
[339500478,1727646639219,-300.0,0.00012082,2]
[339500479,1727646639229,-428.44,0.00012082,2]
[339500480,1727646639238,-301.96,0.00012082,2]
[339500481,1727646639248,-1033.712555,0.00012085,2]
[339500482,1727646639257,-13721.97,0.00012087,2]
[339500483,1727646639266,-6691.23,0.00012087,2]
[339500484,1727646639275,-890.16,0.00012087,2]
[339500485,1727646639285,-18565.04,0.00012087,2]
[339500486,1727646639294,-1000.0,0.000122,2]
[339500487,1727646639303,-500.0,0.00012231,2]
[339500488,1727646639500,-2000.0,0.00012231,2]
[339500489,1727646639510,-500.0,0.00012231,2]
[339500490,1727646639519,-500.0,0.00012231,2]
[339500491,1727646639528,-200.0,0.00012231,2]
[339500492,1727646639536,-155.0,0.0001225,2]
[339500493,1727646639546,-279.44,0.00012294,2]
[339500494,1727646639555,-199.2,0.000123,2]
[339500495,1727646639564,-154.04,0.00012314,2]
[339500496,1727646639573,-3420.1670829,0.00012324,2]
[339500497,1727646639582,-7217.165325,0.00012324,2]
[339500498,1727646639593,-1977.7853797,0.00012327,2]
[339500499,1727646639932,-880.9195654,0.00012327,2]
[339500500,1727646639943,-2953.88686576,0.00012327,2]
[339500501,1727646639954,-699.69900693,0.00012327,2]
[339500502,1727646639964,-845.302431,0.00012327,2]
[339500503,1727646639975,-7885.14675121,0.00012327,2]
[339500504,1727646639985,-1047.07623319,0.0001233,2]
[339500505,1727646639994,-1047.07623319,0.0001233,2]
[339500506,1727646640003,-1047.07623319,0.0001233,2]
[339500507,1727646640012,-1047.07623319,0.0001233,2]
[339500508,1727646640021,-1047.07623319,0.0001233,2]
[339500509,1727646640031,-22.1598412,0.0001233,2]
[339500510,1727646640399,-794.79791123,0.0001233,2]
[339500511,1727646640410,-230.11848076,0.0001233,2]
[339500512,1727646640420,-759.72151924,0.0001233,2]
[339500513,1727646640442,-287.35471395,0.0001233,2]
[339500514,1727646640451,-1047.07623319,0.0001233,2]
[339500515,1727646640461,-1047.07623319,0.0001233,2]
[339500516,1727646640470,-1047.07623319,0.0001233,2]
[339500517,1727646640480,-1047.07623319,0.0001233,2]
[339500518,1727646640490,-1047.07623319,0.0001233,2]
[339500519,1727646640499,-1047.07623319,0.0001233,2]
[339500520,1727646640508,-94.98866664,0.0001233,2]
[339500521,1727646640520,-952.08756655,0.0001233,2]
[339500522,1727646640528,-1047.07623319,0.0001233,2]
[339500523,1727646640538,-111.50188451,0.0001233,2]
[339500524,1727646640549,-935.57434868,0.0001233,2]
[339500525,1727646640558,-1047.07623319,0.0001233,2]
[339500526,1727646640567,-1047.07623319,0.0001233,2]
[339500527,1727646640577,-1047.07623319,0.0001233,2]
[339500528,1727646640588,-1047.57,0.0001233,2]
[339500529,1727646640597,-203.0,0.0001233,2]
[339500530,1727646640606,-203.0,0.0001233,2]
[339500531,1727646640615,-203.0,0.0001233,2]
[339500532,1727646640625,-203.0,0.0001233,2]
[339500533,1727646640635,-203.0,0.0001233,2]
[339500534,1727646640644,-158.846698,0.0001233,2]
[339500535,1727646640653,-5310.98025375,0.00012332,2]
[339500536,1727646640669,-391.951146,0.00012332,2]
[339500537,1727646640681,-824.98743275,0.00012332,2]
[339500538,1727646640697,-969.65529697,0.00012332,2]
[339500539,1727646640708,-24264.33467343,0.00012332,2]
[339500540,1727646640717,-610.0197885,0.00012332,2]
[339500541,1727646640726,-166.42136767,0.0001239,2]
[339500542,1727646640735,-5705.2097,0.00012399,2]
[339500543,1727646640744,-251.70175739,0.000124,4]
[339500544,1727646640754,-3392.4082056,0.000124,2]
[339500545,1727646640765,-838.0833944,0.000124,2]
[339500546,1727646640775,-643.19279248,0.000124,2]
[339500547,1727646640784,-643.19279248,0.000124,2]
[339500548,1727646640794,-643.19279248,0.000124,2]
[339500549,1727646640803,-643.19279248,0.000124,2]
[339500550,1727646640814,-643.19279248,0.000124,2]
[339500551,1727646640823,-643.19279248,0.000124,2]
[339500552,1727646640834,-643.19279248,0.000124,2]
[339500553,1727646640844,-643.19279248,0.000124,2]
[339500554,1727646640853,-643.19279248,0.000124,2]
[339500555,1727646640862,-158.48610629,0.000124,2]
[339500556,1727646640872,-643.19279248,0.000124,2]
[339500557,1727646640881,-643.19279248,0.000124,2]
[339500558,1727646640890,-643.19279248,0.000124,2]
[339500559,1727646640899,-643.19279248,0.000124,2]
[339500560,1727646640908,-643.19279248,0.000124,2]
[339500561,1727646640918,-643.19279248,0.000124,2]
[339500562,1727646640927,-643.19279248,0.000124,2]
[339500563,1727646640936,-643.19279248,0.000124,2]
[339500564,1727646640946,-643.19279248,0.000124,2]
[339500565,1727646640955,-643.19279248,0.000124,2]
[339500566,1727646640964,-643.69,0.000124,2]
[339500567,1727646640973,-1184.99524679,0.000124,2]
[339500568,1727646640982,-1184.99524679,0.000124,2]
[339500569,1727646640991,-1184.99524679,0.000124,2]
[339500570,1727646641001,-1184.99524679,0.000124,2]
[339500571,1727646641010,-1184.99524679,0.000124,2]
[339500572,1727646641018,-1184.99524679,0.000124,2]
[339500573,1727646641027,-1184.99524679,0.000124,2]
[339500574,1727646641036,-1184.99524679,0.000124,2]
[339500575,1727646641045,-1184.99524679,0.000124,2]
[339500576,1727646641054,-1184.99524679,0.000124,2]
[339500577,1727646641063,-1184.99524679,0.000124,2]
[339500578,1727646641071,-1184.99524679,0.000124,2]
[339500579,1727646641080,-1184.99524679,0.000124,2]
[339500580,1727646641090,-1184.99524679,0.000124,2]
[339500581,1727646641099,-1184.99524679,0.000124,2]
[339500582,1727646641108,-1184.99524679,0.000124,2]
[339500583,1727646641117,-1184.99524679,0.000124,2]
[339500584,1727646641126,-1184.99524679,0.000124,2]
[339500585,1727646641135,-1184.99524679,0.000124,2]
[339500586,1727646641144,-1185.49,0.000124,2]
[339500587,1727646641154,-150.0,0.000124,4]
[339500588,1727646641163,-500.0,0.000124,4]
[339500589,1727646641173,-500.0,0.000124,4]
[339500590,1727646641182,-350.38510711,0.00012406,2]
[339500591,1727646641192,-350.38510711,0.00012412,2]
[339500592,1727646641201,-173.83924184,0.00012412,2]
[339500593,1727646641210,-1552.12297943,0.00012412,2]
[339500594,1727646641220,-217.12067785,0.00012412,2]
[339500595,1727646641229,-707.94678438,0.00012423,2]
[339500596,1727646641238,-150.0,0.00012441,4]
[339500597,1727646641248,-500.0,0.00012441,4]
[339500598,1727646641257,-549.14326809,0.00012441,4]
[339500599,1727646641267,-175.67,0.00012445,2]
[339500600,1727646641276,-171.59,0.00012445,2]
[339500601,1727646641286,-169.37,0.00012445,2]
[339500602,1727646641296,-161.79,0.00012445,2]
[339500603,1727646641306,-316.63,0.00012458,2]
[339500604,1727646641317,-500.0,0.00012473,2]
[339500605,1727646641327,-150.0,0.00012482,4]
[339500606,1727646641338,-500.0,0.00012482,4]
[339500607,1727646641347,-2040.35256861,0.0001249,2]
[339500608,1727646641357,-17076.56055995,0.00012491,2]
[339500609,1727646641370,-10809.46833625,0.00012491,2]
[339500610,1727646641381,-3220.1901005,0.00012491,2]
[339500611,1727646641391,-6787.6248079,0.00012491,2]
[339500612,1727646641401,-224.28,0.00012498,2]
[339500613,1727646641411,-6012.34582789,0.000125,2]
[339500614,1727646641423,-2936.3129509,0.000125,2]
[339500615,1727646641434,-91681.41340885,0.000125,2]
[339500616,1727646641446,-998.486475,0.000125,2]
[339500617,1727646641459,-4218.43884436,0.000125,2]
[339500618,1727646641480,-2383.28089997,0.000125,2]
[339500619,1727646641492,-1458.91842534,0.000125,2]
[339500620,1727646641503,-397.95,0.000125,2]
[339500632,1727646643379,-3057.18439741,0.00010698,2]
[339500633,1727646643389,-705.57,0.00011,2]
[339500634,1727646643398,-3537.24560259,0.000125,2]
[339500635,1727646643408,-1302.1840501,0.000125,2]
[339500636,1727646643452,-328.04999985,0.000125,2]
[339500637,1727646643462,-1720.3100005,0.000125,2]
[339500638,1727646643527,-4924.92,0.000125,2]
[339500639,1727646643538,-1301.28873044,0.000125,2]
[339500640,1727646643602,-93092.62582925,0.000125,2]
[339500641,1727646643612,-5420.415,0.000125,2]
[339500642,1727646643623,-2382.52120733,0.000125,2]
[339500643,1727646643635,-1371.56063522,0.000125,2]
[339500644,1727646643648,-636.49603942,0.000125,2]
[339500645,1727646643660,-359.73856219,0.000125,2]
[339500646,1727646643671,-280032.74844899,0.000125,2]
[339500647,1727646643681,-279.0,0.000125,2]
[339500648,1727646643691,-906555.52351165,0.000125,2]
[339500649,1727646646275,-74585.32084698,0.000125,2]
[339500650,1727646646287,-2972.76302513,0.000125,2]
[339500651,1727646646364,-792.73224283,0.000125,2]
[339500652,1727646646376,-8648.23517799,0.000125,2]
[339500653,1727646646442,-78229.67342884,0.000125,2]
[339500654,1727646646454,-711.38074383,0.000125,2]
[339500655,1727646646465,-3338.58727615,0.000125,2]
[339500656,1727646646475,-7290.30369597,0.000125,2]
[339500657,1727646646486,-6770.28999999,0.000125,2]
[339500658,1727646646497,-1201.51934629,0.000125,2]
[339500659,1727646646508,-264.06840755,0.000125,2]
[339500660,1727646646519,-2729.66355406,0.000125,2]
[339500661,1727646646530,-601.3007,0.000125,2]
[339500662,1727646646541,-633.68518401,0.000125,2]
[339500663,1727646646552,-3417.34393201,0.000125,2]
[339500664,1727646646575,-2289.91559988,0.000125,2]
[339500665,1727646646586,-3121.61854213,0.000125,2]
[339500666,1727646646597,-1470.51803953,0.000125,2]
[339500667,1727646646608,-704.85845544,0.000125,2]
[339500668,1727646646619,-1215.30012531,0.000125,2]
[339500669,1727646735535,314.48,9.773e-05,2]
[339500670,1727647261741,311.39,9.49e-05,2]
[339500690,1727647831627,-150.0,0.00010799,2]
[339500692,1727647831637,-300.0,0.00010799,2]
[339500694,1727647831647,-1524.13736734,0.000108,2]
[339500697,1727647831663,-800.0,0.000108,2]
[339500706,1727647831835,-450.0,0.000108,2]
[339500715,1727647837585,-31322.64483266,0.000108,2]
[339500716,1727647837595,-4389.6255,0.000108,2]
[339500717,1727647837604,-500.0,0.00010956,2]
[339500718,1727647837613,-157.64,0.00010959,2]
[339500720,1727647837622,-155.94,0.00010959,2]
[339500721,1727647837631,-500.0,0.00010965,2]
[339500722,1727647837641,-500.0,0.00010974,2]
[339500723,1727647837650,-250.0,0.00010979,2]
[339500724,1727647837659,-500.0,0.00010982,2]
[339500725,1727647837668,-382.46,0.00010985,2]
[339500726,1727647837677,-500.0,0.00010991,2]
[339500727,1727647837685,-635.02,0.00011,2]
[339500728,1727647837695,-500.0,0.00011,2]
[339500729,1727647837704,-150.0,0.00011,2]
[339500730,1727647837713,-607.59966607,0.00011004,2]
[339500731,1727647837732,-392.40033393,0.00011004,2]
[339500732,1727647837741,-170.52,0.00011077,2]
[339500733,1727647837750,-167.66,0.00011186,2]
[339500734,1727647837759,-150.0,0.00011235,2]
[339500735,1727647837768,-305.885,0.0001133,2]
[339500736,1727647837777,-250.0,0.00011353,2]
[339500737,1727647837787,-156.79,0.00011622,2]
[339500738,1727647837796,-311.39,0.00011754,2]
[339500739,1727647837805,-255.0,0.00011836,2]
[339500740,1727647837815,-420.0,0.00011869,2]
[339500741,1727647837824,-716.5,0.00011978,2]
[339500742,1727647837833,-150.0,0.00011978,2]
[339500743,1727647837844,-427.94,0.00011978,2]
[339500744,1727647837853,-150.0,0.00011978,2]
[339500745,1727647837862,-150.0,0.00011978,2]
[339500746,1727647837871,-150.0,0.00011978,2]
[339500747,1727647837880,-150.0,0.00011978,2]
[339500748,1727647837889,-150.0,0.00011978,2]
[339500749,1727647837898,-150.0,0.00011978,2]
[339500750,1727647837907,-150.0,0.00011978,2]
[339500751,1727647837916,-150.0,0.00011978,2]
[339500752,1727647837925,-150.0,0.00011978,2]
[339500753,1727647837935,-533.76,0.00012018,2]
[339500754,1727647837944,-358.32,0.00012018,2]
[339500755,1727647837957,-180.0,0.0001208,2]
[339500756,1727647837967,-422.30975046,0.0001225,2]
[339500757,1727647837977,-196.6,0.000123,2]
[339500758,1727647837986,-319.88,0.000123,2]
[339500759,1727647837996,-1005.8,0.000123,2]
[339500760,1727647838007,-326.049407,0.000123,2]
[339500761,1727647838018,-1727.4821,0.000123,2]
[339500762,1727647838028,-500.0,0.00012316,2]
[339500763,1727647838038,-2000.0,0.00012316,2]
[339500764,1727647838049,-500.0,0.00012316,2]
[339500765,1727647838059,-500.0,0.00012316,2]
[339500766,1727647838067,-200.0,0.00012316,2]
[339500767,1727647838077,-155.0,0.0001233,2]
[339500768,1727647838086,-1000.0,0.00012379,2]
[339500769,1727647838095,-41826.87522718,0.000124,2]
[339500771,1727647838105,-7500.0,0.000124,2]
[339500773,1727647838114,-514.54926191,0.000124,2]
[339500774,1727647838123,-514.54926191,0.000124,2]
[339500775,1727647838132,-514.54926191,0.000124,2]
[339500776,1727647838143,-514.54926191,0.000124,2]
[339500777,1727647838152,-514.54926191,0.000124,2]
[339500778,1727647838161,-514.54926191,0.000124,2]
[339500779,1727647838170,-514.54926191,0.000124,2]
[339500780,1727647838180,-514.54926191,0.000124,2]
[339500781,1727647838191,-514.54926191,0.000124,2]
[339500782,1727647838200,-514.54926191,0.000124,2]
[339500783,1727647838209,-514.54926191,0.000124,2]
[339500784,1727647838219,-514.54926191,0.000124,2]
[339500785,1727647838227,-514.54926191,0.000124,2]
[339500786,1727647838237,-514.54926191,0.000124,2]
[339500787,1727647838246,-514.54926191,0.000124,2]
[339500788,1727647838255,-514.54926191,0.000124,2]
[339500789,1727647838264,-514.54926191,0.000124,2]
[339500790,1727647838273,-514.54926191,0.000124,2]
[339500791,1727647838282,-514.54926191,0.000124,2]
[339500792,1727647838292,-515.04,0.000124,2]
[339500793,1727647838301,-837.65604888,0.000124,2]
[339500794,1727647838310,-1612.0,0.000124,2]
[339500795,1727647838319,-837.65604888,0.000124,2]
[339500796,1727647838328,-837.65604888,0.000124,2]
[339500797,1727647838338,-837.65604888,0.000124,2]
[339500798,1727647838347,-837.65604888,0.000124,2]
[339500799,1727647838356,-837.65604888,0.000124,2]
[339500800,1727647838365,-837.65604888,0.000124,2]
[339500801,1727647838374,-837.65604888,0.000124,2]
[339500802,1727647838383,-837.65604888,0.000124,2]
[339500803,1727647838392,-837.65604888,0.000124,2]
[339500804,1727647838401,-837.65604888,0.000124,2]
[339500805,1727647838410,-837.65604888,0.000124,2]
[339500806,1727647838419,-837.65604888,0.000124,2]
[339500807,1727647838635,-837.65604888,0.000124,2]
[339500808,1727647838645,-837.65604888,0.000124,2]
[339500809,1727647838655,-837.65604888,0.000124,2]
[339500810,1727647838663,-837.65604888,0.000124,2]
[339500811,1727647838672,-837.65604888,0.000124,2]
[339500812,1727647838682,-837.65604888,0.000124,2]
[339500813,1727647838691,-838.15,0.000124,2]
[339500814,1727647838700,-431.85790888,0.000124,2]
[339500815,1727647838709,-947.9912499,0.000124,2]
[339500816,1727647838718,-947.9912499,0.000124,2]
[339500817,1727647838727,-947.9912499,0.000124,2]
[339500818,1727647838735,-947.9912499,0.000124,2]
[339500819,1727647838745,-947.9912499,0.000124,2]
[339500820,1727647838753,-947.9912499,0.000124,2]
[339500821,1727647838763,-947.9912499,0.000124,2]
[339500822,1727647838772,-947.9912499,0.000124,2]
[339500823,1727647838781,-947.9912499,0.000124,2]